fUST/lending_fUST_20250811
["ID","MTS","AMOUNT","RATE_DAILY","PERIOD"]
[378544717,1754909449492,-460.0,0.00020446,2]
[378544718,1754909449503,-460.0,0.00020446,2]
[378544719,1754909449512,-460.0,0.00020446,2]
[378544720,1754909449522,-460.0,0.00020446,2]
[378544721,1754909449534,-661.54,0.00020446,2]
[378544722,1754909449544,-74477.21039118,0.00020446,2]
[378544723,1754909451330,-155.48493919,0.00019893,2]
[378544724,1754909451343,-460.0,0.00019897,2]
[378544725,1754909451355,-461.25,0.00019897,2]
[378544726,1754909451367,-460.0,0.00019898,2]
[378544727,1754909451378,-460.0,0.00019972,2]
[378544728,1754909451391,-460.0,0.00019972,2]
[378544729,1754909451402,-478.77,0.00019989,2]
[378544730,1754909451414,-460.0,0.00019995,2]
[378544731,1754909451424,-460.0,0.00020172,2]
[378544732,1754909451436,-230.7,0.00020236,3]
[378544733,1754909451447,-460.0,0.00020246,2]
[378544734,1754909451458,-191678.3068935,0.00020446,2]
[378544735,1754909455843,21237.82474104,0.00028,30]
[378544737,1754909478374,1898.14505718,0.000189,2]
[378544738,1754909478398,2014.1076436,0.000189,2]
[378544739,1754909521187,483.934222,0.00013699,2]
[378544741,1754909562672,150.0,0.000135,2]
[378544742,1754909563472,1867.52230222,0.00030137,120]
[378544743,1754909637588,3076.1936714,0.00018896,2]
[378544744,1754909721780,183.0792017,0.00019044,2]
[378544745,1754909753107,-166.9356753,0.00019885,3]
[378544746,1754909779747,150.0,0.000189,2]
[378544750,1754909886713,363484.69971284,0.00028,30]
[378544752,1754909930424,10008.94048264,0.00019796,2]
[378544753,1754909931921,3933.74477866,0.00018891,2]
[378544754,1754909931942,20000.0,0.00018891,2]
[378544755,1754909931965,966.25522134,0.00018891,2]
[378544758,1754909958807,318.84602,0.00019178,2]
[378544765,1754909995960,487.82461556,0.00019293,2]
[378544766,1754909996299,243.91230778,0.00019293,2]
[378544767,1754910078898,688.972549,0.00018889,2]
[378544769,1754910190649,6672.62698844,0.00019796,2]
[378544782,1754910277733,4612.66575409,0.00019274,2]
[378544787,1754910350940,3690.45,0.0003,120]
[378544788,1754910451161,4702.19604025,0.00019796,2]
[378544792,1754910479342,459.73751,0.00013699,2]
[378544796,1754910608939,846.96299354,0.00018883,2]
[378544797,1754910608960,9153.03700646,0.00018883,2]
[378545126,1754910635740,-179.19172,0.00019863,2]
[378545128,1754910635749,-343.13217176,0.0001988,2]
[378545133,1754910635790,-471.98987529,0.0001988,2]
[378545211,1754910638317,-384.87795295,0.0001988,2]
[378545212,1754910638328,-1200.0,0.00019881,2]
[378545213,1754910638338,-300.0,0.00019881,2]
[378545214,1754910638348,-300.0,0.00019881,2]
[378545215,1754910638358,-300.0,0.00019881,2]
[378545216,1754910638367,-300.0,0.00019881,2]
[378545217,1754910638377,-300.0,0.00019881,2]
[378545218,1754910638386,-155.50370443,0.00019882,2]
[378545219,1754910638396,-154.42353487,0.00019882,2]
[378545220,1754910638406,-500.0,0.00019882,2]
[378545221,1754910638416,-500.0,0.00019882,2]
[378545222,1754910638425,-500.0,0.00019882,2]
[378545223,1754910638435,-500.0,0.00019882,2]
[378545224,1754910638445,-400.32893505,0.00019882,2]
[378545225,1754910638457,-118.8623347,0.00019882,2]
[378545226,1754910638466,-177.40271045,0.00019882,2]
[378545227,1754910638476,-460.0,0.00019882,2]
[378545228,1754910638485,-460.0,0.00019882,2]
[378545229,1754910638494,-460.0,0.00019882,2]
[378545231,1754910638504,-460.0,0.00019882,2]
[378545232,1754910638514,-460.0,0.00019882,2]
[378545233,1754910638523,-2379.84,0.00019882,3]
[378545234,1754910638533,-1189.92,0.00019882,3]
[378545235,1754910638542,-594.96,0.00019882,3]
[378545236,1754910638552,-297.48,0.00019882,3]
[378545237,1754910638560,-892.48,0.00019882,3]
[378545238,1754910638570,-22567.43973761,0.00019883,2]
[378545359,1754910640603,-655.51617945,0.00019883,2]
[378545361,1754910640615,-267.71194637,0.00019883,2]
[378545363,1754910640627,-518.7684832,0.00019883,2]
[378545366,1754910640643,-570.54589812,0.00019883,2]
[378545821,1754910647897,-460.0,0.00019882,2]
[378545823,1754910647908,-25420.01775525,0.00019883,2]
[378545826,1754910647918,-464.08742879,0.00019883,2]
[378545827,1754910647927,-460.0,0.00019883,2]
[378545829,1754910647937,-460.0,0.00019883,2]
[378545832,1754910647947,-460.0,0.00019883,2]
[378545834,1754910647958,-460.0,0.00019883,2]
[378545836,1754910647968,-504.92,0.00019883,2]
[378545838,1754910647978,-460.0,0.00019883,2]
[378545840,1754910647988,-505.09238812,0.00019883,2]
[378545842,1754910647997,-460.0,0.00019883,2]
[378545844,1754910648007,-1462.22,0.00019883,2]
[378545846,1754910648017,-460.0,0.00019883,2]
[378545848,1754910648031,-460.0,0.00019883,2]
[378545850,1754910648040,-460.35131766,0.00019883,2]
[378545852,1754910648049,-467.95,0.00019883,2]
[378545854,1754910648059,-460.0,0.00019883,2]
[378545856,1754910648068,-470.9879091,0.00019889,2]
[378545858,1754910648079,-460.0,0.00019889,2]
[378545860,1754910648089,-460.0,0.00019889,2]
[378545862,1754910648099,-460.0,0.00019889,2]
[378545864,1754910648110,-460.0,0.00019889,2]
[378545866,1754910648120,-460.0,0.00019889,2]
[378545868,1754910648129,-460.0,0.00019889,2]
[378545870,1754910648140,-1015.87,0.00019889,2]
[378545872,1754910648149,-658.04,0.00019889,2]
[378545874,1754910648159,-460.0,0.00019889,2]
[378545876,1754910648168,-460.0,0.00019889,2]
[378545878,1754910648177,-460.0,0.00019889,2]
[378545880,1754910648187,-460.0,0.00019889,2]
[378545882,1754910648197,-460.0,0.00019889,2]
[378545885,1754910648208,-3114.77,0.00019889,2]
[378545887,1754910648217,-460.0,0.00019889,2]
[378545889,1754910648227,-460.0,0.00019889,2]
[378545891,1754910648238,-460.0,0.00019889,2]
[378545893,1754910648247,-559.69,0.00019889,2]
[378545895,1754910648257,-460.0,0.00019889,2]
[378545897,1754910648266,-2918.31,0.00019889,2]
[378545899,1754910648276,-468.76883729,0.00019889,2]
[378545901,1754910648285,-882.25,0.00019889,2]
[378545903,1754910648295,-460.0,0.00019889,2]
[378545905,1754910648304,-723.08,0.00019889,2]
[378545907,1754910648313,-952.85,0.00019889,2]
[378545909,1754910648323,-460.0,0.00019889,2]
[378545911,1754910648333,-460.0,0.00019889,2]
[378545913,1754910648343,-460.0,0.00019889,2]
[378545915,1754910648352,-460.0,0.00019889,2]
[378545917,1754910648362,-4772.73,0.00019889,2]
[378545919,1754910648371,-460.0,0.00019889,2]
[378545921,1754910648380,-1403.75,0.00019889,2]
[378545923,1754910648390,-460.0,0.00019889,2]
[378545925,1754910648399,-460.0,0.00019889,2]
[378545927,1754910648408,-460.0,0.00019889,2]
[378545929,1754910648418,-1118.59,0.00019889,2]
[378545935,1754910648469,-1588.94,0.00019889,2]
[378545937,1754910648480,-460.0,0.00019889,2]
[378545939,1754910648490,-460.0,0.00019889,2]
[378545941,1754910648500,-460.0,0.0001989,2]
[378545943,1754910648509,-460.0,0.0001989,2]
[378545945,1754910648519,-563.43,0.0001989,2]
[378545947,1754910648528,-460.0,0.0001989,2]
[378545949,1754910648538,-460.0,0.0001989,2]
[378545951,1754910648548,-460.0,0.0001989,2]
[378545953,1754910648558,-460.0,0.0001989,2]
[378545955,1754910648567,-464.29436172,0.0001989,2]
[378545957,1754910648577,-460.0,0.0001989,2]
[378545959,1754910648587,-460.0,0.0001989,2]
[378545961,1754910648597,-460.0,0.0001989,2]
[378545963,1754910648606,-460.0,0.0001989,2]
[378545966,1754910648616,-460.0,0.0001989,2]
[378545968,1754910648626,-460.0,0.0001989,2]
[378545969,1754910648635,-460.0,0.0001989,2]
[378545972,1754910648646,-460.0,0.0001989,2]
[378545974,1754910648656,-460.0,0.0001989,2]
[378545976,1754910648665,-460.0,0.0001989,2]
[378545978,1754910648674,-460.0,0.0001989,2]
[378545980,1754910648685,-584.48091387,0.0001989,2]
[378545982,1754910648694,-460.0,0.0001989,2]
[378545984,1754910648704,-383.83442842,0.0001989,2]
[378545986,1754910648714,-495.92170392,0.0001989,2]
[378545988,1754910648723,-471.97460108,0.0001989,2]
[378545990,1754910648733,-469.44,0.0001989,2]
[378545992,1754910648743,-460.0,0.0001989,2]
[378545994,1754910648752,-460.0,0.0001989,2]
[378545996,1754910648762,-460.0,0.0001989,2]
[378545998,1754910648772,-460.0,0.0001989,2]
[378546000,1754910648781,-460.0,0.0001989,2]
[378546002,1754910648791,-376.49726733,0.0001989,2]
[378546003,1754910648801,-460.0,0.0001989,2]
[378546005,1754910648811,-460.0,0.0001989,2]
[378546008,1754910648821,-460.0,0.0001989,2]
[378546010,1754910648831,-460.0,0.0001989,2]
[378546012,1754910648840,-460.0,0.0001989,2]
[378546014,1754910648850,-460.0,0.0001989,2]
[378546016,1754910648860,-460.0,0.0001989,2]
[378546018,1754910648869,-460.0,0.0001989,2]
[378546020,1754910648879,-456.85094476,0.0001989,2]
[378546022,1754910648888,-460.0,0.0001989,2]
[378546024,1754910648897,-771.55,0.0001989,2]
[378546026,1754910648907,-590.35,0.0001989,2]
[378546028,1754910648917,-785.0,0.0001989,2]
[378546030,1754910648925,-460.0,0.0001989,2]
[378546032,1754910648935,-499.78,0.0001989,2]
[378546033,1754910648946,-460.0,0.0001989,2]
[378546035,1754910648956,-627.25,0.0001989,2]
[378546037,1754910648966,-460.0,0.0001989,2]
[378546040,1754910648975,-460.0,0.0001989,2]
[378546042,1754910648987,-460.0,0.0001989,2]
[378546044,1754910648997,-612.15,0.0001989,2]
[378546046,1754910649006,-460.0,0.0001989,2]
[378546048,1754910649016,-460.0,0.0001989,2]
[378546050,1754910649028,-460.0,0.0001989,2]
[378546052,1754910649038,-438.1620341,0.0001989,2]
[378546054,1754910649048,-460.0,0.0001989,2]
[378546056,1754910649057,-460.0,0.0001989,2]
[378546058,1754910649067,-460.0,0.0001989,2]
[378546060,1754910649076,-460.0,0.0001989,2]
[378546062,1754910649086,-460.0,0.0001989,2]
[378546064,1754910649096,-352.66578884,0.0001989,2]
[378546066,1754910649106,-460.0,0.0001989,2]
[378546068,1754910649116,-460.0,0.0001989,2]
[378546070,1754910649126,-460.0,0.0001989,2]
[378546072,1754910649136,-460.0,0.0001989,2]
[378546074,1754910649145,-460.0,0.0001989,2]
[378546076,1754910649155,-477.6754392,0.0001989,2]
[378546078,1754910649164,-460.0,0.0001989,2]
[378546080,1754910649174,-460.0,0.0001989,2]
[378546082,1754910649184,-593.9,0.0001989,2]
[378546084,1754910649194,-264.82920484,0.0001989,2]
[378546086,1754910649204,-460.0,0.0001989,2]
[378546088,1754910649214,-460.0,0.0001989,2]
[378546090,1754910649224,-460.0,0.0001989,2]
[378546092,1754910649235,-460.0,0.0001989,2]
[378546094,1754910649245,-460.0,0.0001989,2]
[378546096,1754910649255,-460.0,0.0001989,2]
[378546098,1754910649265,-460.0,0.0001989,2]
[378546100,1754910649275,-460.0,0.0001989,2]
[378546102,1754910649286,-460.0,0.0001989,2]
[378546104,1754910649296,-460.0,0.0001989,2]
[378546106,1754910649307,-460.0,0.0001989,2]
[378546108,1754910649318,-819.4,0.0001989,2]
[378546110,1754910649328,-460.0,0.0001989,2]
[378546112,1754910649341,-460.0,0.0001989,2]
[378546114,1754910649352,-460.0,0.0001989,2]
[378546115,1754910649362,-460.0,0.0001989,2]
[378546117,1754910649374,-464.59492655,0.0001989,2]
[378546120,1754910649385,-460.0,0.0001989,2]
[378546122,1754910649395,-1734.71,0.0001989,2]
[378546123,1754910649405,-515.10827208,0.0001989,2]
[378546125,1754910649416,-706.93,0.0001989,2]
[378546126,1754910649426,-460.0,0.0001989,2]
[378546127,1754910649436,-475.77910277,0.0001989,2]
[378546128,1754910649447,-460.0,0.0001989,2]
[378546129,1754910649457,-460.0,0.0001989,2]
[378546130,1754910649467,-985.57,0.0001989,2]
[378546131,1754910649477,-460.0,0.0001989,2]
[378546132,1754910649487,-460.0,0.0001989,2]
[378546133,1754910649497,-460.0,0.0001989,2]
[378546134,1754910649507,-326.45367302,0.0001989,2]
[378546135,1754910649517,-537.38,0.0001989,2]
[378546136,1754910649527,-460.0,0.0001989,2]
[378546137,1754910649536,-312.47011625,0.0001989,2]
[378546138,1754910649547,-460.0,0.0001989,2]
[378546139,1754910649556,-460.0,0.0001989,2]
[378546140,1754910649570,-460.0,0.0001989,2]
[378546142,1754910649583,-460.0,0.0001989,2]
[378546144,1754910649592,-460.0,0.0001989,2]
[378546146,1754910649602,-460.0,0.0001989,2]
[378546148,1754910649611,-460.0,0.0001989,2]
[378546150,1754910649620,-460.0,0.0001989,2]
[378546152,1754910649630,-460.0,0.0001989,2]
[378546154,1754910649639,-460.0,0.0001989,2]
[378546156,1754910649648,-3177.2,0.0001989,2]
[378546158,1754910649658,-1059.59,0.0001989,2]
[378546160,1754910649668,-460.0,0.0001989,2]
[378546162,1754910649678,-460.0,0.0001989,2]
[378546164,1754910649688,-844.71,0.0001989,2]
[378546166,1754910649697,-609.38,0.0001989,2]
[378546168,1754910649707,-460.0,0.0001989,2]
[378546170,1754910649716,-670.22,0.0001989,2]
[378546172,1754910649725,-460.0,0.0001989,2]
[378546174,1754910649736,-460.0,0.0001989,2]
[378546176,1754910649746,-460.0,0.0001989,2]
[378546179,1754910649756,-460.0,0.0001989,2]
[378546180,1754910649766,-460.0,0.0001989,2]
[378546183,1754910649776,-995.06,0.0001989,2]
[378546185,1754910649786,-881.85,0.0001989,2]
[378546187,1754910649796,-460.0,0.0001989,2]
[378546189,1754910649805,-460.0,0.0001989,2]
[378546191,1754910649815,-3613.2,0.0001989,2]
[378546193,1754910649824,-460.0,0.0001989,2]
[378546195,1754910649834,-460.0,0.0001989,2]
[378546197,1754910649843,-460.0,0.0001989,2]
[378546199,1754910649853,-460.0,0.0001989,2]
[378546201,1754910649863,-514.11,0.0001989,2]
[378546203,1754910649872,-460.0,0.0001989,2]
[378546205,1754910649881,-466.49634067,0.0001989,2]
[378546207,1754910649891,-460.0,0.0001989,2]
[378546209,1754910649901,-460.0,0.0001989,2]
[378546211,1754910649911,-622.63,0.0001989,2]
[378546213,1754910649920,-460.0,0.0001989,2]
[378546215,1754910649929,-460.0,0.0001989,2]
[378546217,1754910649939,-460.0,0.0001989,2]
[378546219,1754910649948,-460.0,0.0001989,2]
[378546221,1754910649958,-460.0,0.0001989,2]
[378546223,1754910649967,-460.0,0.0001989,2]
[378546225,1754910649976,-460.0,0.0001989,2]
[378546227,1754910649985,-460.0,0.0001989,2]
[378546229,1754910649995,-460.0,0.0001989,2]
[378546231,1754910650005,-865.45,0.0001989,2]
[378546233,1754910650015,-460.0,0.0001989,2]
[378546235,1754910650025,-800.69,0.0001989,2]
[378546237,1754910650037,-326.57951032,0.0001989,2]
[378546239,1754910650047,-460.0,0.0001989,2]
[378546241,1754910650056,-460.0,0.0001989,2]
[378546243,1754910650065,-460.0,0.0001989,2]
[378546245,1754910650076,-462.43303239,0.0001989,2]
[378546247,1754910650086,-460.0,0.0001989,2]
[378546249,1754910650096,-460.0,0.0001989,2]
[378546251,1754910650106,-572.84,0.0001989,2]
[378546253,1754910650115,-460.0,0.0001989,2]
[378546255,1754910650124,-460.0,0.0001989,2]
[378546257,1754910650133,-168.59094207,0.0001989,2]
[378546259,1754910650143,-460.0,0.0001989,2]
[378546261,1754910650152,-460.0,0.0001989,2]
[378546263,1754910650161,-991.54,0.0001989,2]
[378546265,1754910650170,-1139.78,0.0001989,2]
[378546267,1754910650179,-604.54,0.0001989,2]
[378546269,1754910650189,-1759.71,0.0001989,2]
[378546271,1754910650198,-460.0,0.0001989,2]
[378546272,1754910650206,-971.5,0.0001989,2]
[378546274,1754910650215,-460.0,0.0001989,2]
[378546276,1754910650224,-460.0,0.0001989,2]
[378546278,1754910650234,-853.51,0.0001989,2]
[378546280,1754910650243,-460.0,0.0001989,2]
[378546282,1754910650252,-460.0,0.0001989,2]
[378546284,1754910650261,-460.0,0.0001989,2]
[378546286,1754910650270,-767.16,0.0001989,2]
[378546288,1754910650279,-460.0,0.0001989,2]
[378546290,1754910650288,-425.14751909,0.0001989,2]
[378546292,1754910650297,-871.64846895,0.0001989,2]
[378546294,1754910650307,-871.64846895,0.0001989,2]
[378546296,1754910650316,-871.64846895,0.0001989,2]
[378546298,1754910650325,-871.64846895,0.0001989,2]
[378546300,1754910650334,-871.64846895,0.0001989,2]
[378546302,1754910650344,-871.64846895,0.0001989,2]
[378546304,1754910650353,-871.64846895,0.0001989,2]
[378546306,1754910650362,-871.64846895,0.0001989,2]
[378546308,1754910650371,-871.64846895,0.0001989,2]
[378546310,1754910650384,-871.64846895,0.0001989,2]
[378546312,1754910650393,-871.64846895,0.0001989,2]
[378546314,1754910650403,-871.64846895,0.0001989,2]
[378546316,1754910650412,-871.64846895,0.0001989,2]
[378546318,1754910650421,-871.64846895,0.0001989,2]
[378546320,1754910650430,-871.64846895,0.0001989,2]
[378546322,1754910650439,-871.64846895,0.0001989,2]
[378546324,1754910650449,-871.64846895,0.0001989,2]
[378546326,1754910650458,-460.0,0.0001989,2]
[378546328,1754910650467,-460.0,0.0001989,2]
[378546330,1754910650476,-460.0,0.0001989,2]
[378546332,1754910650485,-460.0,0.0001989,2]
[378546334,1754910650494,-871.64846895,0.0001989,2]
[378546336,1754910650504,-460.0,0.0001989,2]
[378546338,1754910650513,-460.0,0.0001989,2]
[378546340,1754910650523,-1736.21953648,0.0001989,2]
[378546342,1754910650532,-1736.21953648,0.0001989,2]
[378546344,1754910650541,-1736.21953648,0.0001989,2]
[378546346,1754910650550,-1736.21953648,0.0001989,2]
[378546348,1754910650559,-1736.21953648,0.0001989,2]
[378546350,1754910650568,-1736.21953648,0.0001989,2]
[378546352,1754910650578,-1736.21953648,0.0001989,2]
[378546354,1754910650588,-1736.21953648,0.0001989,2]
[378546356,1754910650597,-1736.21953648,0.0001989,2]
[378546358,1754910650606,-1736.21953648,0.0001989,2]
[378546360,1754910650615,-1736.21953648,0.0001989,2]
[378546362,1754910650624,-476.05,0.0001989,2]
[378546364,1754910650634,-460.0,0.00019892,2]
[378546366,1754910650643,-460.0,0.00019892,2]
[378546368,1754910650651,-460.0,0.00019892,2]
[378546370,1754910650660,-460.0,0.00019892,2]
[378546372,1754910650670,-460.0,0.00019892,2]
[378546374,1754910650679,-635.62,0.00019892,2]
[378546376,1754910650688,-460.0,0.00019892,2]
[378546378,1754910650698,-548.38,0.00019892,2]
[378546380,1754910650707,-1122.16,0.00019892,2]
[378546381,1754910650715,-460.0,0.00019892,2]
[378546383,1754910650725,-460.0,0.00019892,2]
[378546385,1754910650739,-460.0,0.00019892,2]
[378546387,1754910650753,-460.0,0.00019892,2]
[378546389,1754910650764,-464.85,0.00019892,2]
[378546391,1754910650773,-460.0,0.00019892,2]
[378546393,1754910650783,-460.0,0.00019892,2]
[378546395,1754910650793,-501.3,0.00019892,2]
[378546397,1754910650803,-533.44,0.00019892,2]
[378546399,1754910650812,-566.92,0.00019892,2]
[378546402,1754910650831,-460.0,0.00019892,2]
[378546404,1754910650844,-460.0,0.00019892,2]
[378546406,1754910650853,-1212.9,0.00019892,2]
[378546408,1754910650862,-954.25,0.00019892,2]
[378546410,1754910650871,-707.6,0.00019892,2]
[378546412,1754910650881,-460.0,0.00019892,2]
[378546414,1754910650890,-460.0,0.00019892,2]
[378546416,1754910650900,-1127.51,0.00019892,2]
[378546418,1754910650909,-1357.29,0.00019892,2]
[378546420,1754910650918,-647.32,0.00019892,2]
[378546422,1754910650928,-460.0,0.00019892,2]
[378546424,1754910650938,-807.11,0.00019892,2]
[378546426,1754910650947,-477.31082058,0.00019892,2]
[378546428,1754910650957,-460.0,0.00019892,2]
[378546430,1754910650967,-460.0,0.00019892,2]
[378546432,1754910650976,-460.0,0.00019892,2]
[378546434,1754910650986,-460.0,0.00019892,2]
[378546437,1754910650997,-2695.86,0.00019892,2]
[378546439,1754910651008,-2695.86,0.00019892,2]
[378546441,1754910651017,-2695.86,0.00019892,2]
[378546443,1754910651029,-500.0,0.00019892,2]
[378546445,1754910651038,-500.0,0.00019892,2]
[378546447,1754910651048,-500.0,0.00019892,2]
[378546449,1754910651058,-1535.01,0.00019892,2]
[378546451,1754910651069,-1535.01,0.00019892,2]
[378546453,1754910651078,-1535.01,0.00019892,2]
[378546454,1754910651089,-797.51,0.00019892,2]
[378546457,1754910651101,-500.0,0.00019892,2]
[378546459,1754910651111,-460.0,0.00019893,2]
[378546461,1754910651121,-557.36,0.00019893,2]
[378546463,1754910651131,-460.0,0.00019893,2]
[378546464,1754910651140,-460.0,0.00019893,2]
[378546466,1754910651150,-460.0,0.00019893,2]
[378546468,1754910651159,-511.97,0.00019893,2]
[378546471,1754910651170,-264.121674,0.00019893,2]
[378546473,1754910651180,-460.0,0.00019893,2]
[378546475,1754910651190,-460.0,0.00019893,2]
[378546477,1754910651199,-573.64,0.00019893,2]
[378546479,1754910651209,-460.0,0.00019893,2]
[378546480,1754910651219,-460.0,0.00019893,2]
[378546483,1754910651228,-645.26,0.00019893,2]
[378546485,1754910651238,-240.09161754,0.00019893,2]
[378546487,1754910651248,-460.0,0.00019893,2]
[378546488,1754910651257,-460.0,0.00019893,2]
[378546491,1754910651267,-2695.86,0.00019893,2]
[378546492,1754910651276,-2695.86,0.00019893,2]
[378546494,1754910651286,-460.0,0.00019893,2]
[378546497,1754910651295,-500.0,0.00019893,2]
[378546498,1754910651306,-500.0,0.00019893,2]
[378546500,1754910651315,-1535.01,0.00019893,2]
[378546502,1754910651324,-1535.01,0.00019893,2]
[378546504,1754910651335,-879.61,0.00019893,2]
[378546506,1754910651344,-2695.86,0.00019894,2]
[378546508,1754910651354,-502.28998527,0.00019894,2]
[378546510,1754910651364,-1535.01,0.00019894,2]
[378546512,1754910651373,-278028.46137944,0.00019895,2]
[378547161,1754910660473,153.02,0.000261,120]
[378547174,1754910660936,282.62147023,0.00019781,2]
[378547633,1754910665603,229.53,0.000261,120]
[378547818,1754910667382,153.0,0.000261,120]
[378547987,1754910669151,357.46,0.000261,120]
[378548187,1754910671415,210.95,0.000261,120]
[378548923,1754910722718,565.7,0.000261,120]
[378548924,1754910724557,377.14,0.000261,120]
[378548925,1754910726127,217.0,0.000261,120]
[378548926,1754910740413,710.18562109,0.00019781,2]
[378548929,1754910976732,3695.22388277,0.00019796,2]
[378548930,1754910985141,2558.16846719,0.000189,2]
[378548932,1754911007548,3600.76355226,0.0001979,2]
[378548933,1754911007571,20000.0,0.0001979,2]
[378548934,1754911007594,20000.0,0.0001979,2]
[378548935,1754911007616,20000.0,0.0001979,2]
[378548936,1754911007638,20000.0,0.0001979,2]
[378548937,1754911007660,20000.0,0.0001979,2]
[378548938,1754911007683,20000.0,0.0001979,2]
[378548939,1754911007706,20000.0,0.0001979,2]
[378548940,1754911007728,20000.0,0.0001979,2]
[378548941,1754911007751,20000.0,0.0001979,2]
[378548942,1754911007774,20000.0,0.0001979,2]
[378548943,1754911007796,20000.0,0.0001979,2]
[378548944,1754911007818,20000.0,0.0001979,2]
[378548945,1754911007840,20000.0,0.0001979,2]
[378548946,1754911007863,20000.0,0.0001979,2]
[378548947,1754911007885,20000.0,0.0001979,2]
[378548948,1754911007911,20000.0,0.0001979,2]
[378548949,1754911007933,20000.0,0.0001979,2]
[378548950,1754911007956,20000.0,0.0001979,2]
[378548951,1754911007978,6399.23644774,0.0001979,2]
[378548952,1754911020008,5000.0,0.0001984,2]
[378548953,1754911028593,5000.0,0.0001984,2]
[378548954,1754911033901,302.84859387,0.00019741,2]
[378548955,1754911036809,3297.91495839,0.0001984,2]
[378548956,1754911036832,1702.08504161,0.0001984,2]
[378548958,1754911045402,1373.84186657,0.0001984,2]
[378548959,1754911053564,5000.0,0.0001984,2]
[378548961,1754911069018,5000.0,0.0001984,2]
[378548962,1754911069244,383.49,0.00030136,120]
[378548964,1754911174530,6924.07309182,0.0001978,2]
[378548965,1754911174555,20000.0,0.0001978,2]
[378548966,1754911174577,20000.0,0.0001978,2]
[378548967,1754911174600,20000.0,0.0001978,2]
[378548968,1754911174624,20000.0,0.0001978,2]
[378548969,1754911174646,20000.0,0.0001978,2]
[378548970,1754911174668,20000.0,0.0001978,2]
[378548971,1754911174692,20000.0,0.0001978,2]
[378548972,1754911174715,20000.0,0.0001978,2]
[378548973,1754911174737,20000.0,0.0001978,2]
[378548974,1754911174760,20000.0,0.0001978,2]
[378548975,1754911174782,20000.0,0.0001978,2]
[378548976,1754911174806,20000.0,0.0001978,2]
[378548977,1754911174828,20000.0,0.0001978,2]
[378548978,1754911174851,20000.0,0.0001978,2]
[378548979,1754911174873,20000.0,0.0001978,2]
[378548980,1754911174896,20000.0,0.0001978,2]
[378548981,1754911174919,20000.0,0.0001978,2]
[378548982,1754911174945,20000.0,0.0001978,2]
[378548983,1754911174969,3075.92690818,0.0001978,2]
[378548984,1754911188888,5000.0,0.0001984,2]
[378548985,1754911197552,1727.26009854,0.00019275,2]
[378548986,1754911197907,863.63004927,0.00019275,2]
[378548987,1754911199658,9333.18294401,0.00018872,2]
[378548988,1754911199680,20000.0,0.00018872,2]
[378548989,1754911199700,20000.0,0.00018872,2]
[378548990,1754911199722,13505.03885729,0.00018872,2]
[378548991,1754911204105,5000.0,0.0001984,2]
[378548992,1754911212295,1494.96114271,0.0001984,2]
[378548993,1754911212318,2957.1926112,0.0001984,2]